[Event "*** SCC Grand Prix: Titled Tuesday Blitz"]
[Site "Chess.com"]
[Date "2020.09.29"]
[Round "2"]
[White "lider34"]
[Black "szefru"]
[Result "1/2-1/2"]
[WhiteElo "2396"]
[BlackElo "2146"]
[TimeControl "180+1"]
[EndTime "10:18:51 PDT"]
[Termination "Game drawn by repetition"]

1. e4 {[%clk 0:03:00.9]} 1... Nf6 {[%clk 0:02:59.7]} 2. Nc3 {[%clk 0:02:58.6]}
2... d5 {[%clk 0:02:59.7]} 3. exd5 {[%clk 0:02:55.2]} 3... Nxd5 {[%clk
0:03:00.6]} 4. Bc4 {[%clk 0:02:55]} 4... c6 {[%clk 0:03:00.4]} 5. Nge2 {[%clk
0:02:52.2]} 5... g6 {[%clk 0:03:00.3]} 6. O-O {[%clk 0:02:51.6]} 6... Bg7 {[%clk
0:03:00.6]} 7. Nxd5 {[%clk 0:02:46.4]} 7... cxd5 {[%clk 0:03:01.4]} 8. Bb5+
{[%clk 0:02:46.3]} 8... Bd7 {[%clk 0:03:01.7]} 9. Bxd7+ {[%clk 0:02:44.9]} 9...
Nxd7 {[%clk 0:03:02.6]} 10. d4 {[%clk 0:02:44.8]} 10... O-O {[%clk 0:03:02.7]}
11. c3 {[%clk 0:02:44.5]} 11... Nf6 {[%clk 0:03:01]} 12. Ng3 {[%clk 0:02:42]}
12... h5 {[%clk 0:02:58.8]} 13. Bg5 {[%clk 0:02:39.8]} 13... Qd7 {[%clk
0:02:53.5]} 14. Re1 {[%clk 0:02:37.1]} 14... Rfe8 {[%clk 0:02:50.6]} 15. Qf3
{[%clk 0:02:35.5]} 15... Nh7 {[%clk 0:02:34.3]} 16. Bd2 {[%clk 0:02:32]} 16...
Bf6 {[%clk 0:02:07.5]} 17. Nf1 {[%clk 0:02:28.8]} 17... Ng5 {[%clk 0:02:06.9]}
18. Bxg5 {[%clk 0:02:23.2]} 18... Bxg5 {[%clk 0:02:06.8]} 19. Re5 {[%clk
0:02:23.6]} 19... Bf6 {[%clk 0:01:58.6]} 20. Qxd5 {[%clk 0:02:17.5]} 20... Qc7
{[%clk 0:01:53.7]} 21. Re2 {[%clk 0:02:15.1]} 21... Rad8 {[%clk 0:01:53.2]} 22.
Qf3 {[%clk 0:02:14.2]} 22... b6 {[%clk 0:01:48.3]} 23. Rae1 {[%clk 0:02:12.5]}
23... Bg7 {[%clk 0:01:45.2]} 24. Ne3 {[%clk 0:02:10.3]} 24... e6 {[%clk
0:01:44.9]} 25. h3 {[%clk 0:02:01.9]} 25... Qd7 {[%clk 0:01:39.5]} 26. a3 {[%clk
0:01:59.9]} 26... e5 {[%clk 0:01:28.1]} 27. dxe5 {[%clk 0:01:50.9]} 27... Rxe5
{[%clk 0:01:29]} 28. Nc4 {[%clk 0:01:48.1]} 28... Rf5 {[%clk 0:01:17]} 29. Qe4
{[%clk 0:01:45.1]} 29... Qb5 {[%clk 0:00:52.9]} 30. Qe7 {[%clk 0:01:34.8]} 30...
Rd7 {[%clk 0:00:36.7]} 31. Qe8+ {[%clk 0:01:28.7]} 31... Kh7 {[%clk 0:00:37]}
32. Ne3 {[%clk 0:01:14.3]} 32... Re5 {[%clk 0:00:36.5]} 33. Qc8 {[%clk 0:01:12]}
33... Rde7 {[%clk 0:00:36.6]} 34. Qd8 {[%clk 0:00:53]} 34... Bh6 {[%clk
0:00:36.7]} 35. c4 {[%clk 0:00:42]} 35... Qc5 {[%clk 0:00:35.2]} 36. b4 {[%clk
0:00:40.6]} 36... Qc6 {[%clk 0:00:34.8]} 37. Qd3 {[%clk 0:00:31.3]} 37... Bxe3
{[%clk 0:00:34.7]} 38. Rxe3 {[%clk 0:00:30.2]} 38... Rxe3 {[%clk 0:00:34.6]} 39.
Rxe3 {[%clk 0:00:29.9]} 39... Rxe3 {[%clk 0:00:34.7]} 40. fxe3 {[%clk
0:00:29.9]} 40... Qf6 {[%clk 0:00:34.8]} 41. Qd4 {[%clk 0:00:29.3]} 41... Qf5
{[%clk 0:00:33.9]} 42. e4 {[%clk 0:00:28]} 42... Qf4 {[%clk 0:00:33.8]} 43. a4
{[%clk 0:00:23.9]} 43... Qc1+ {[%clk 0:00:32.9]} 44. Kf2 {[%clk 0:00:23.6]}
44... Qf4+ {[%clk 0:00:33.2]} 45. Ke2 {[%clk 0:00:22.6]} 45... Qg3 {[%clk
0:00:33.4]} 46. Kf1 {[%clk 0:00:21.6]} 46... Qf4+ {[%clk 0:00:33.1]} 47. Kg1
{[%clk 0:00:20.1]} 47... Qc1+ {[%clk 0:00:32.9]} 48. Kh2 {[%clk 0:00:20]} 48...
Qf4+ {[%clk 0:00:32.5]} 49. g3 {[%clk 0:00:19.6]} 49... Qg5 {[%clk 0:00:30.9]}
50. Kg2 {[%clk 0:00:18.2]} 50... h4 {[%clk 0:00:30.7]} 51. Qd3 {[%clk
0:00:15.6]} 51... hxg3 {[%clk 0:00:29.8]} 52. Qxg3 {[%clk 0:00:15.6]} 52... Qd2+
{[%clk 0:00:29.8]} 53. Qf2 {[%clk 0:00:15.8]} 53... Qg5+ {[%clk 0:00:29.4]} 54.
Kh2 {[%clk 0:00:15.9]} 54... Qe5+ {[%clk 0:00:29.4]} 55. Kg1 {[%clk 0:00:15.6]}
55... Kg7 {[%clk 0:00:28.9]} 56. Qe3 {[%clk 0:00:14.2]} 56... Qa1+ {[%clk
0:00:28.8]} 57. Kg2 {[%clk 0:00:13.1]} 57... Qxa4 {[%clk 0:00:29.4]} 58. Qd4+
{[%clk 0:00:12.6]} 58... Kh7 {[%clk 0:00:29.8]} 59. Qf6 {[%clk 0:00:12]} 59...
Qa2+ {[%clk 0:00:28.7]} 60. Kg3 {[%clk 0:00:11.1]} 60... Qxc4 {[%clk 0:00:29.2]}
61. Qf4 {[%clk 0:00:09.7]} 61... Qc3+ {[%clk 0:00:26.9]} 62. Kg2 {[%clk
0:00:08.8]} 62... Kg7 {[%clk 0:00:27.3]} 63. e5 {[%clk 0:00:08.1]} 63... Qc2+
{[%clk 0:00:26.6]} 64. Kg1 {[%clk 0:00:07]} 64... a5 {[%clk 0:00:24.2]} 65. bxa5
{[%clk 0:00:04.8]} 65... bxa5 {[%clk 0:00:24.1]} 66. Qf6+ {[%clk 0:00:04.3]}
66... Kf8 {[%clk 0:00:20.5]} 67. Qd8+ {[%clk 0:00:03.4]} 67... Kg7 {[%clk
0:00:20.8]} 68. Qf6+ {[%clk 0:00:04.3]} 68... Kh6 {[%clk 0:00:19]} 69. Qh4+
{[%clk 0:00:03.4]} 69... Kg7 {[%clk 0:00:19]} 70. Qf6+ {[%clk 0:00:04.3]}
1/2-1/2

[Event "*** SCC Grand Prix: Titled Tuesday Blitz"]
[Site "Chess.com"]
[Date "2020.09.29"]
[Round "2"]
[White "rasmussvane"]
[Black "ALeks_Ivlev"]
[Result "1-0"]
[WhiteElo "2893"]
[BlackElo "2558"]
[TimeControl "180+1"]
[EndTime "10:18:52 PDT"]
[Termination "rasmussvane won by resignation"]

1. Nf3 {[%clk 0:03:00.9]} 1... Nf6 {[%clk 0:02:59.9]} 2. g3 {[%clk 0:03:01.3]}
2... b5 {[%clk 0:02:55.5]} 3. Na3 {[%clk 0:02:58]} 3... a6 {[%clk 0:02:52.5]} 4.
c4 {[%clk 0:02:57.9]} 4... b4 {[%clk 0:02:51.4]} 5. Nc2 {[%clk 0:02:58.1]} 5...
c5 {[%clk 0:02:51.1]} 6. d4 {[%clk 0:02:55.8]} 6... e6 {[%clk 0:02:50.1]} 7. Bg2
{[%clk 0:02:47.4]} 7... Bb7 {[%clk 0:02:49.8]} 8. d5 {[%clk 0:02:47.7]} 8...
exd5 {[%clk 0:02:46]} 9. Nh4 {[%clk 0:02:46.9]} 9... g6 {[%clk 0:02:41.1]} 10.
Ne3 {[%clk 0:02:36.8]} 10... Bg7 {[%clk 0:02:40.9]} 11. Nxd5 {[%clk 0:02:32.8]}
11... Bxd5 {[%clk 0:02:23.8]} 12. Bxd5 {[%clk 0:02:33.7]} 12... Nxd5 {[%clk
0:02:21.3]} 13. Qxd5 {[%clk 0:02:34.6]} 13... Nc6 {[%clk 0:02:15.3]} 14. Qxc5
{[%clk 0:02:28.1]} 14... Bd4 {[%clk 0:02:12.8]} 15. Qd6 {[%clk 0:02:16.2]} 15...
Be5 {[%clk 0:02:00.6]} 16. Qd5 {[%clk 0:02:12.1]} 16... O-O {[%clk 0:01:58.5]}
17. Nf3 {[%clk 0:01:58.9]} 17... Bg7 {[%clk 0:01:56.6]} 18. O-O {[%clk
0:01:58.7]} 18... Qe7 {[%clk 0:01:17.9]} 19. Re1 {[%clk 0:01:53.9]} 19... h6
{[%clk 0:01:11.6]} 20. Rb1 {[%clk 0:01:48.8]} 20... Rfe8 {[%clk 0:01:08.8]} 21.
Be3 {[%clk 0:01:39.7]} 21... a5 {[%clk 0:01:06.7]} 22. Red1 {[%clk 0:01:38.2]}
22... Rad8 {[%clk 0:00:58.7]} 23. Bb6 {[%clk 0:01:34.8]} 23... Rb8 {[%clk
0:00:58]} 24. Be3 {[%clk 0:01:31.7]} 24... Rbd8 {[%clk 0:00:53.6]} 25. Rd2
{[%clk 0:01:31.7]} 25... a4 {[%clk 0:00:46.2]} 26. Rbd1 {[%clk 0:01:30.6]} 26...
b3 {[%clk 0:00:43.5]} 27. axb3 {[%clk 0:01:30]} 27... axb3 {[%clk 0:00:43.5]}
28. Bb6 {[%clk 0:01:27.4]} 28... Rb8 {[%clk 0:00:40.7]} 29. Bc5 {[%clk
0:01:25.1]} 29... Qe4 {[%clk 0:00:38.3]} 30. e3 {[%clk 0:01:08.5]} 30... Qg4
{[%clk 0:00:35.1]} 31. Kg2 {[%clk 0:01:05.8]} 31... Nb4 {[%clk 0:00:26.8]} 32.
Bxb4 {[%clk 0:00:49.7]} 32... Rxb4 {[%clk 0:00:26.4]} 33. c5 {[%clk 0:00:49.3]}
33... Qe6 {[%clk 0:00:19.7]} 34. Qxe6 {[%clk 0:00:42.3]} 34... dxe6 {[%clk
0:00:19.4]} 35. Nd4 {[%clk 0:00:41.6]} 35... Rc8 {[%clk 0:00:18.7]} 36. Rc1
{[%clk 0:00:39.9]} 36... e5 {[%clk 0:00:16.7]} 37. Ne2 {[%clk 0:00:31.5]} 37...
e4 {[%clk 0:00:16.2]} 38. Nd4 {[%clk 0:00:31]} 38... Be5 {[%clk 0:00:15.8]} 39.
Rc3 {[%clk 0:00:29.8]} 39... Bxd4 {[%clk 0:00:13.4]} 40. Rxd4 {[%clk 0:00:28.4]}
40... Rb5 {[%clk 0:00:10.8]} 41. Rxe4 {[%clk 0:00:26.4]} 41... Kg7 {[%clk
0:00:10.2]} 42. c6 {[%clk 0:00:25.3]} 42... Rb6 {[%clk 0:00:10.4]} 43. c7 {[%clk
0:00:25.4]} 43... h5 {[%clk 0:00:10.5]} 44. Rd4 {[%clk 0:00:24.5]} 44... Rb7
{[%clk 0:00:10.8]} 45. h4 {[%clk 0:00:23.8]} 45... Rcxc7 {[%clk 0:00:10.6]} 46.
Rxc7 {[%clk 0:00:24.7]} 46... Rxc7 {[%clk 0:00:11.5]} 47. Rb4 {[%clk 0:00:25.3]}
47... Kf6 {[%clk 0:00:12.1]} 48. Rxb3 {[%clk 0:00:24.9]} 48... Kf5 {[%clk
0:00:13]} 49. Rb4 {[%clk 0:00:23.7]} 49... Ke5 {[%clk 0:00:13.2]} 50. Kf3 {[%clk
0:00:23.9]} 50... Rc2 {[%clk 0:00:13.3]} 51. Rb5+ {[%clk 0:00:24]} 51... Ke6
{[%clk 0:00:13.7]} 52. b4 {[%clk 0:00:24.3]} 52... Rb2 {[%clk 0:00:14.1]} 53.
Rb6+ {[%clk 0:00:24.6]} 53... Ke5 {[%clk 0:00:13.9]} 54. Rb7 {[%clk 0:00:24]}
54... f6 {[%clk 0:00:14.1]} 55. Rb5+ {[%clk 0:00:22.8]} 55... Ke6 {[%clk
0:00:14.3]} 56. e4 {[%clk 0:00:21.6]} 56... Kd6 {[%clk 0:00:14]} 57. Ke3 {[%clk
0:00:19.9]} 57... Ke6 {[%clk 0:00:14.4]} 58. f3 {[%clk 0:00:19.8]} 58... Kd6
{[%clk 0:00:14.3]} 59. Kf4 {[%clk 0:00:20.2]} 59... Ke6 {[%clk 0:00:14.5]} 60.
Rb6+ {[%clk 0:00:20.5]} 60... Kf7 {[%clk 0:00:14.8]} 61. e5 {[%clk 0:00:19.1]}
61... fxe5+ {[%clk 0:00:13.4]} 62. Kxe5 {[%clk 0:00:20]} 62... Rb3 {[%clk
0:00:13.2]} 63. Kf4 {[%clk 0:00:20]} 63... Rc3 {[%clk 0:00:12.5]} 64. Kg5 {[%clk
0:00:18.8]} 64... Rxf3 {[%clk 0:00:11.9]} 65. Rb7+ {[%clk 0:00:16.5]} 65... Ke6
{[%clk 0:00:12.2]} 66. Kxg6 {[%clk 0:00:16.9]} 66... Rxg3+ {[%clk 0:00:12.6]}
67. Kxh5 {[%clk 0:00:17.4]} 67... Rg1 {[%clk 0:00:13.2]} 68. Kh6 {[%clk
0:00:17.1]} 68... Kf6 {[%clk 0:00:13.4]} 69. h5 {[%clk 0:00:16.7]} 69... Rg8
{[%clk 0:00:13.7]} 70. Kh7 {[%clk 0:00:16.8]} 70... Rg5 {[%clk 0:00:14]} 71. h6
{[%clk 0:00:16.6]} 71... Rg1 {[%clk 0:00:14.5]} 72. Rb6+ {[%clk 0:00:15.9]}
72... Kf7 {[%clk 0:00:14.7]} 73. Rb7+ {[%clk 0:00:15.7]} 73... Kf6 {[%clk
0:00:14.9]} 74. Rc7 {[%clk 0:00:15.5]} 74... Rg5 {[%clk 0:00:14.6]} 75. Rc5
{[%clk 0:00:14.4]} 75... Rg4 {[%clk 0:00:14.8]} 76. b5 {[%clk 0:00:14.2]} 76...
Rb4 {[%clk 0:00:14.8]} 77. Rc6+ {[%clk 0:00:14.4]} 77... Kf7 {[%clk 0:00:15.1]}
78. b6 {[%clk 0:00:14.8]} 78... Kf8 {[%clk 0:00:15.2]} 79. Rf6+ {[%clk
0:00:14.2]} 79... Ke7 {[%clk 0:00:15.5]} 80. Kg7 {[%clk 0:00:14.8]} 80... Rg4+
{[%clk 0:00:15.5]} 81. Rg6 {[%clk 0:00:15.2]} 81... Rf4 {[%clk 0:00:16.1]} 82.
h7 {[%clk 0:00:15.2]} 82... Rf7+ {[%clk 0:00:16.4]} 83. Kh6 {[%clk 0:00:15.8]}
1-0

[Event "*** SCC Grand Prix: Titled Tuesday Blitz"]
[Site "Chess.com"]
[Date "2020.09.29"]
[Round "2"]
[White "DonPreuss"]
[Black "MPGM"]
[Result "0-1"]
[WhiteElo "2245"]
[BlackElo "2437"]
[TimeControl "180+1"]
[EndTime "10:18:56 PDT"]
[Termination "MPGM won on time"]

1. d4 {[%clk 0:02:59.6]} 1... Nf6 {[%clk 0:02:54.7]} 2. Nc3 {[%clk 0:02:59.1]}
2... d5 {[%clk 0:02:54.1]} 3. e4 {[%clk 0:02:58.9]} 3... c5 {[%clk 0:02:51.6]}
4. e5 {[%clk 0:02:54.8]} 4... cxd4 {[%clk 0:02:50.8]} 5. Qxd4 {[%clk 0:02:54.4]}
5... Nc6 {[%clk 0:02:50.1]} 6. Bb5 {[%clk 0:02:52.7]} 6... Nd7 {[%clk
0:02:37.8]} 7. Qxd5 {[%clk 0:02:50.1]} 7... e6 {[%clk 0:02:34]} 8. Qe4 {[%clk
0:02:49]} 8... Be7 {[%clk 0:02:08.9]} 9. Nf3 {[%clk 0:02:47.6]} 9... O-O {[%clk
0:02:09.3]} 10. Bd3 {[%clk 0:02:43.6]} 10... g6 {[%clk 0:02:08.1]} 11. Bh6
{[%clk 0:02:41.8]} 11... Nc5 {[%clk 0:02:06.1]} 12. Qg4 {[%clk 0:02:15.6]} 12...
Nxd3+ {[%clk 0:02:04.6]} 13. cxd3 {[%clk 0:02:16.5]} 13... Re8 {[%clk
0:01:51.1]} 14. O-O {[%clk 0:02:12]} 14... b6 {[%clk 0:01:46.3]} 15. d4 {[%clk
0:02:11]} 15... Bb7 {[%clk 0:01:45.5]} 16. Rad1 {[%clk 0:02:07.2]} 16... Nb4
{[%clk 0:01:40.7]} 17. Ne4 {[%clk 0:02:03.5]} 17... Bxe4 {[%clk 0:01:34.2]} 18.
Qxe4 {[%clk 0:02:03]} 18... Nxa2 {[%clk 0:01:34.6]} 19. Qg4 {[%clk 0:01:50.2]}
19... Nb4 {[%clk 0:01:32]} 20. Ng5 {[%clk 0:01:49.7]} 20... Qd7 {[%clk
0:01:11.2]} 21. h4 {[%clk 0:01:36.4]} 21... Nd5 {[%clk 0:00:54.4]} 22. h5 {[%clk
0:01:34.2]} 22... Bxg5 {[%clk 0:00:43.2]} 23. Bxg5 {[%clk 0:01:33.6]} 23... Kg7
{[%clk 0:00:43.4]} 24. Qh4 {[%clk 0:01:25.5]} 24... h6 {[%clk 0:00:30]} 25. Bf6+
{[%clk 0:01:24.4]} 25... Kh7 {[%clk 0:00:26.1]} 26. hxg6+ {[%clk 0:01:23.1]}
26... fxg6 {[%clk 0:00:27]} 27. Bg5 {[%clk 0:01:09.9]} 27... Qg7 {[%clk
0:00:22.6]} 28. Rd3 {[%clk 0:01:09]} 28... h5 {[%clk 0:00:17.1]} 29. g4 {[%clk
0:01:06]} 29... Qf7 {[%clk 0:00:17.3]} 30. Qh3 {[%clk 0:00:54.1]} 30... Nf4
{[%clk 0:00:15.8]} 31. Bxf4 {[%clk 0:00:44.6]} 31... Qxf4 {[%clk 0:00:16.7]} 32.
Rf3 {[%clk 0:00:31.3]} 32... Qxg4+ {[%clk 0:00:09.8]} 33. Qxg4 {[%clk
0:00:31.6]} 33... hxg4 {[%clk 0:00:10.7]} 34. Rf7+ {[%clk 0:00:31.9]} 34... Kh6
{[%clk 0:00:11.1]} 35. Kg2 {[%clk 0:00:30.6]} 35... Kg5 {[%clk 0:00:10.8]} 36.
Rc1 {[%clk 0:00:25.3]} 36... Rac8 {[%clk 0:00:10]} 37. Rxc8 {[%clk 0:00:23.3]}
37... Rxc8 {[%clk 0:00:10.9]} 38. Rxa7 {[%clk 0:00:22.5]} 38... Rc4 {[%clk
0:00:11.2]} 39. Rd7 {[%clk 0:00:21.7]} 39... Rb4 {[%clk 0:00:09.3]} 40. Rd6
{[%clk 0:00:21.9]} 40... Kf5 {[%clk 0:00:09.5]} 41. d5 {[%clk 0:00:16.1]} 41...
exd5 {[%clk 0:00:07.8]} 42. Rxd5 {[%clk 0:00:16.5]} 42... Rxb2 {[%clk
0:00:07.2]} 43. Kg3 {[%clk 0:00:16.6]} 43... Rb3+ {[%clk 0:00:07.1]} 44. Kg2
{[%clk 0:00:16.2]} 44... b5 {[%clk 0:00:07.1]} 45. Rc5 {[%clk 0:00:15.8]} 45...
b4 {[%clk 0:00:06.2]} 46. Rb5 {[%clk 0:00:15.9]} 46... Ke6 {[%clk 0:00:04.8]}
47. Kh2 {[%clk 0:00:15.2]} 47... Rb2 {[%clk 0:00:03.2]} 48. Kg2 {[%clk
0:00:15.3]} 48... b3 {[%clk 0:00:03.2]} 49. Kg1 {[%clk 0:00:15.3]} 49... Rb1+
{[%clk 0:00:03.7]} 50. Kg2 {[%clk 0:00:15.6]} 50... g5 {[%clk 0:00:02.9]} 51.
Kh2 {[%clk 0:00:15]} 51... Kf5 {[%clk 0:00:03.4]} 52. Kg2 {[%clk 0:00:15.2]}
52... Ke6 {[%clk 0:00:03.4]} 53. Kh2 {[%clk 0:00:14.4]} 53... Rb2 {[%clk
0:00:03.7]} 54. Kg2 {[%clk 0:00:14.5]} 54... Kf5 {[%clk 0:00:04.3]} 55. Kg1
{[%clk 0:00:13.9]} 55... Kf4 {[%clk 0:00:04.8]} 56. Kg2 {[%clk 0:00:14.1]} 56...
g3 {[%clk 0:00:04.7]} 57. Rb4+ {[%clk 0:00:13.6]} 57... Kxe5 {[%clk 0:00:05.2]}
58. Kxg3 {[%clk 0:00:13.7]} 58... Rb1 {[%clk 0:00:05]} 59. Kg2 {[%clk
0:00:12.4]} 59... Kd5 {[%clk 0:00:04.7]} 60. Rb5+ {[%clk 0:00:11.9]} 60... Kc4
{[%clk 0:00:04.7]} 61. Rxg5 {[%clk 0:00:10.9]} 61... b2 {[%clk 0:00:05.1]} 62.
Rg4+ {[%clk 0:00:11.2]} 62... Kc3 {[%clk 0:00:04.9]} 63. Rg3+ {[%clk 0:00:10.9]}
63... Kc2 {[%clk 0:00:04.6]} 64. Kf3 {[%clk 0:00:08.5]} 64... Ra1 {[%clk
0:00:04.1]} 65. Rg5 {[%clk 0:00:06.5]} 65... b1=Q {[%clk 0:00:05]} 66. Rc5+
{[%clk 0:00:05.9]} 66... Kd3 {[%clk 0:00:05.9]} 67. Rd5+ {[%clk 0:00:06]} 67...
Kc4 {[%clk 0:00:06.8]} 68. Re5 {[%clk 0:00:06.2]} 68... Qd3+ {[%clk 0:00:06.8]}
69. Re3 {[%clk 0:00:06.3]} 69... Qf5+ {[%clk 0:00:07.3]} 0-1

[Event "*** SCC Grand Prix: Titled Tuesday Blitz"]
[Site "Chess.com"]
[Date "2020.09.29"]
[Round "2"]
[White "AlexOstrovskiy"]
[Black "ErikRonka"]
[Result "1-0"]
[WhiteElo "2734"]
[BlackElo "2477"]
[TimeControl "180+1"]
[EndTime "10:19:10 PDT"]
[Termination "AlexOstrovskiy won by checkmate"]

1. d4 {[%clk 0:03:00.9]} 1... d5 {[%clk 0:02:58.5]} 2. Bf4 {[%clk 0:03:01.3]}
2... c5 {[%clk 0:02:58.3]} 3. e4 {[%clk 0:03:01.1]} 3... dxe4 {[%clk 0:02:57.6]}
4. d5 {[%clk 0:03:02]} 4... Nf6 {[%clk 0:02:57.3]} 5. Nc3 {[%clk 0:03:00.4]}
5... g6 {[%clk 0:02:57.2]} 6. Qd2 {[%clk 0:02:58.4]} 6... Bg7 {[%clk 0:02:57.7]}
7. O-O-O {[%clk 0:02:58.5]} 7... O-O {[%clk 0:02:57.4]} 8. Bh6 {[%clk
0:02:58.5]} 8... a6 {[%clk 0:02:53]} 9. Nge2 {[%clk 0:02:54.3]} 9... e6 {[%clk
0:02:24]} 10. d6 {[%clk 0:02:46.1]} 10... b5 {[%clk 0:02:17.2]} 11. Ng3 {[%clk
0:02:45.1]} 11... Bb7 {[%clk 0:02:07.3]} 12. Bxg7 {[%clk 0:02:41.5]} 12... Kxg7
{[%clk 0:02:07]} 13. Qe3 {[%clk 0:02:37]} 13... Nbd7 {[%clk 0:01:50.4]} 14.
Ncxe4 {[%clk 0:02:33.2]} 14... Nxe4 {[%clk 0:01:36.1]} 15. Nxe4 {[%clk
0:02:34.1]} 15... Bxe4 {[%clk 0:01:34.1]} 16. Qxe4 {[%clk 0:02:35]} 16... Qg5+
{[%clk 0:01:08.1]} 17. f4 {[%clk 0:02:30.9]} 17... Nf6 {[%clk 0:00:49.8]} 18.
Qe3 {[%clk 0:02:11.4]} 18... Nd5 {[%clk 0:00:44.6]} 19. fxg5 {[%clk 0:01:45.1]}
19... Nxe3 {[%clk 0:00:44.5]} 20. Rd3 {[%clk 0:01:45.7]} 20... Ng4 {[%clk
0:00:35.8]} 21. Rd2 {[%clk 0:01:35.8]} 21... Rad8 {[%clk 0:00:32.8]} 22. a4
{[%clk 0:01:24.4]} 22... c4 {[%clk 0:00:26.8]} 23. Be2 {[%clk 0:00:49.6]} 23...
Nf2 {[%clk 0:00:24.1]} 24. Rf1 {[%clk 0:00:50.2]} 24... Ne4 {[%clk 0:00:24.6]}
25. Rd4 {[%clk 0:00:50.7]} 25... Nxd6 {[%clk 0:00:23.8]} 26. Rfd1 {[%clk
0:00:50.9]} 26... Nb7 {[%clk 0:00:23.7]} 27. Rd7 {[%clk 0:00:51.3]} 27... Rxd7
{[%clk 0:00:20.9]} 28. Rxd7 {[%clk 0:00:52.2]} 28... Nc5 {[%clk 0:00:21.4]} 29.
Ra7 {[%clk 0:00:47.6]} 29... Rb8 {[%clk 0:00:16]} 30. a5 {[%clk 0:00:42.1]}
30... Rd8 {[%clk 0:00:12.1]} 31. Bf3 {[%clk 0:00:35.3]} 31... Rc8 {[%clk
0:00:12.4]} 32. h4 {[%clk 0:00:32.7]} 32... Kg8 {[%clk 0:00:07.8]} 33. Kd2
{[%clk 0:00:30]} 33... Kf8 {[%clk 0:00:08.3]} 34. Ke3 {[%clk 0:00:30.4]} 34...
Rd8 {[%clk 0:00:04.5]} 35. Rc7 {[%clk 0:00:27.2]} 35... Nd7 {[%clk 0:00:04]} 36.
Ra7 {[%clk 0:00:20.4]} 36... Ke7 {[%clk 0:00:03.7]} 37. Rxa6 {[%clk 0:00:20.2]}
37... Rb8 {[%clk 0:00:03.7]} 38. Ra7 {[%clk 0:00:19.6]} 38... Kd6 {[%clk
0:00:04.3]} 39. a6 {[%clk 0:00:19.1]} 39... Nc5 {[%clk 0:00:04.3]} 40. Rxf7
{[%clk 0:00:17.6]} 40... Nxa6 {[%clk 0:00:03.7]} 41. Rxh7 {[%clk 0:00:17.7]}
41... Nb4 {[%clk 0:00:04]} 42. c3 {[%clk 0:00:17.4]} 42... Nd3 {[%clk
0:00:04.6]} 43. b4 {[%clk 0:00:16.5]} 43... Ne5 {[%clk 0:00:03.7]} 44. Be4
{[%clk 0:00:13]} 44... Rb6 {[%clk 0:00:04.2]} 45. Rh8 {[%clk 0:00:10.5]} 45...
Ra6 {[%clk 0:00:04.4]} 46. Rd8+ {[%clk 0:00:09.7]} 46... Ke7 {[%clk 0:00:04.4]}
47. Rd2 {[%clk 0:00:10.3]} 47... Ra3 {[%clk 0:00:04.7]} 48. Rc2 {[%clk
0:00:10.8]} 48... Ra1 {[%clk 0:00:04.5]} 49. Kf4 {[%clk 0:00:10.9]} 49... Nd3+
{[%clk 0:00:04.1]} 50. Bxd3 {[%clk 0:00:10.7]} 50... cxd3 {[%clk 0:00:05]} 51.
Rd2 {[%clk 0:00:11.3]} 51... Rf1+ {[%clk 0:00:05.8]} 52. Kg4 {[%clk 0:00:09.2]}
52... Rg1 {[%clk 0:00:03]} 53. g3 {[%clk 0:00:09.5]} 53... e5 {[%clk 0:00:02.9]}
54. Rxd3 {[%clk 0:00:09.8]} 54... Ke6 {[%clk 0:00:03.8]} 55. Rf3 {[%clk
0:00:06.5]} 55... e4 {[%clk 0:00:04]} 56. Rf6+ {[%clk 0:00:06]} 56... Ke5 {[%clk
0:00:04.9]} 57. Rxg6 {[%clk 0:00:06.6]} 57... e3 {[%clk 0:00:05.4]} 58. Rg8
{[%clk 0:00:07]} 58... Kd6 {[%clk 0:00:05.6]} 59. Re8 {[%clk 0:00:07.2]} 59...
Re1 {[%clk 0:00:05.4]} 60. Kf3 {[%clk 0:00:07.7]} 60... e2 {[%clk 0:00:04]} 61.
Rxe2 {[%clk 0:00:07.4]} 61... Rc1 {[%clk 0:00:04.9]} 62. Re3 {[%clk 0:00:07]}
62... Kd5 {[%clk 0:00:05.3]} 63. Kg4 {[%clk 0:00:06.9]} 63... Rf1 {[%clk
0:00:05.9]} 64. Rf3 {[%clk 0:00:06.9]} 64... Re1 {[%clk 0:00:05.6]} 65. g6
{[%clk 0:00:06.8]} 65... Re7 {[%clk 0:00:05.7]} 66. h5 {[%clk 0:00:06.8]} 66...
Ke4 {[%clk 0:00:06.6]} 67. Rf4+ {[%clk 0:00:06.7]} 67... Ke5 {[%clk 0:00:06.3]}
68. Rf7 {[%clk 0:00:06.7]} 68... Re6 {[%clk 0:00:06.6]} 69. Rf5+ {[%clk
0:00:06.1]} 69... Ke4 {[%clk 0:00:06.7]} 70. Rxb5 {[%clk 0:00:07]} 70... Re7
{[%clk 0:00:04.8]} 71. Rc5 {[%clk 0:00:07.2]} 71... Kd3 {[%clk 0:00:04.1]} 72.
Kg5 {[%clk 0:00:07.6]} 72... Re4 {[%clk 0:00:04.6]} 73. h6 {[%clk 0:00:07.7]}
73... Re3 {[%clk 0:00:05.5]} 74. g4 {[%clk 0:00:07.8]} 74... Rg3 {[%clk
0:00:06.4]} 75. h7 {[%clk 0:00:07.9]} 75... Rh3 {[%clk 0:00:07]} 76. Rc8 {[%clk
0:00:07.9]} 76... Rh1 {[%clk 0:00:06.8]} 77. h8=Q {[%clk 0:00:08.2]} 77... Re1
{[%clk 0:00:06.9]} 78. Qd4+ {[%clk 0:00:07.9]} 78... Kc2 {[%clk 0:00:07]} 79. g7
{[%clk 0:00:07.4]} 79... Re2 {[%clk 0:00:05.6]} 80. g8=Q {[%clk 0:00:07.5]}
80... Re5+ {[%clk 0:00:04.6]} 81. Qxe5 {[%clk 0:00:07]} 81... Kb2 {[%clk
0:00:05.5]} 82. Ra8 {[%clk 0:00:06.7]} 82... Kc2 {[%clk 0:00:04.9]} 83. Qe2+
{[%clk 0:00:06.6]} 83... Kxc3 {[%clk 0:00:05.8]} 84. Qg7+ {[%clk 0:00:06.7]}
84... Kb3 {[%clk 0:00:05.9]} 85. Qeb2+ {[%clk 0:00:06.2]} 85... Kc4 {[%clk
0:00:06.8]} 86. Qbc3+ {[%clk 0:00:06.3]} 86... Kb5 {[%clk 0:00:07.7]} 87. Qb7#
{[%clk 0:00:06.3]} 1-0